fUST/lending_fUST_20240103
["ID","MTS","AMOUNT","RATE_DAILY","PERIOD"]
[309953371,1704229844967,-500.0,0.00046027,21]
[309953372,1704229844976,-221.98686075,0.00046027,21]
[309953373,1704229844985,-500.0,0.00046027,21]
[309953374,1704229844994,-500.0,0.00046027,21]
[309953375,1704229845003,-500.0,0.00046027,21]
[309953376,1704229845015,-474.49494392,0.00046027,21]
[309953377,1704229845025,-500.0,0.00046027,21]
[309953378,1704229845034,-252.4742012,0.00046027,21]
[309953379,1704229845045,-517.28440755,0.00046027,21]
[309953380,1704229845054,-500.0,0.00046027,21]
[309953381,1704229845064,-500.0,0.00046027,21]
[309953382,1704229845074,-500.0,0.00046027,21]
[309953383,1704229845084,-500.0,0.00046027,21]
[309953384,1704229845094,-597.97234831,0.00046027,21]
[309953385,1704229845106,-500.0,0.00046027,21]
[309953386,1704229845116,-535.64887267,0.00046027,21]
[309953387,1704229845126,-500.0,0.00046027,21]
[309953388,1704229845137,-500.0,0.00046027,21]
[309953389,1704229845147,-500.0,0.00046027,21]
[309953390,1704229845158,-500.0,0.00046027,21]
[309953391,1704229845167,-335.0,0.00046027,21]
[309953392,1704229845176,-500.0,0.00046027,21]
[309953393,1704229845186,-347.83357146,0.00046027,21]
[309953394,1704229845195,-354.95664156,0.00046027,21]
[309953395,1704229845204,-500.0,0.00046027,21]
[309953396,1704229845214,-500.0,0.00046027,21]
[309953397,1704229845223,-253.42,0.00046027,21]
[309953398,1704229845233,-500.0,0.00046027,21]
[309953399,1704229845243,-500.0,0.00046027,21]
[309953400,1704229845252,-502.91288221,0.00046027,21]
[309953401,1704229845261,-515.67864189,0.00046027,21]
[309953402,1704229845270,-500.0,0.00046027,21]
[309953403,1704229845280,-507.81855575,0.00046027,21]
[309953404,1704229845289,-500.0,0.00046027,21]
[309953405,1704229845299,-500.0,0.00046027,21]
[309953406,1704229845309,-500.0,0.00046027,21]
[309953407,1704229845318,-500.0,0.00046027,21]
[309953408,1704229845328,-500.0,0.00046027,21]
[309953409,1704229845337,-513.89783607,0.00046027,21]
[309953410,1704229845346,-500.0,0.00046027,21]
[309953411,1704229845359,-500.0,0.00046027,21]
[309953412,1704229845368,-500.0,0.00046027,21]
[309953413,1704229845377,-526.2067946,0.00046027,21]
[309953414,1704229845387,-500.0,0.00046027,21]
[309953415,1704229845397,-500.0,0.00046027,21]
[309953416,1704229845406,-500.0,0.00046027,21]
[309953417,1704229845415,-500.0,0.00046027,21]
[309953418,1704229845425,-500.0,0.00046027,21]
[309953419,1704229845435,-500.0,0.00046027,21]
[309953420,1704229845444,-500.0,0.00046027,21]
[309953421,1704229845454,-500.0,0.00046027,21]
[309953422,1704229845464,-500.0,0.00046027,21]
[309953423,1704229845473,-500.0,0.00046027,21]
[309953424,1704229845482,-500.0,0.00046027,21]
[309953425,1704229845492,-500.0,0.00046027,21]
[309953426,1704229845501,-500.0,0.00046027,21]
[309953427,1704229845510,-500.0,0.00046027,21]
[309953428,1704229845520,-500.0,0.00046027,21]
[309953429,1704229845529,-500.0,0.00046027,21]
[309953430,1704229845538,-500.0,0.00046027,21]
[309953431,1704229845548,-500.0,0.00046027,21]
[309953432,1704229845557,-202.79823734,0.00046027,21]
[309953433,1704229845567,-2483.99,0.00046027,21]
[309953434,1704229845654,-2483.99,0.00046027,21]
[309953435,1704229845664,-2483.99,0.00046027,21]
[309953436,1704229845675,-2483.99,0.00046027,21]
[309953437,1704229845685,-2483.99,0.00046027,21]
[309953438,1704229845695,-2483.99,0.00046027,21]
[309953439,1704229845704,-500.0,0.00046027,21]
[309953440,1704229845714,-1382.07055624,0.00046027,21]
[309953441,1704229845729,-945.22000003,0.00046027,21]
[309953442,1704229845741,-156.69944373,0.00046027,21]
[309953443,1704229845751,-2483.99,0.00046027,21]
[309953444,1704229845761,-2483.99,0.00046027,21]
[309953445,1704229845770,-2483.99,0.00046027,21]
[309953446,1704229845779,-2483.99,0.00046027,21]
[309953447,1704229845789,-2483.99,0.00046027,21]
[309953448,1704229845798,-2483.99,0.00046027,21]
[309953449,1704229845807,-2483.99,0.00046027,21]
[309953450,1704229845817,-2483.99,0.00046027,21]
[309953451,1704229845826,-2483.99,0.00046027,21]
[309953452,1704229845836,-2483.99,0.00046027,21]
[309953453,1704229845846,-2483.99,0.00046027,21]
[309953454,1704229845859,-2483.99,0.00046027,21]
[309953455,1704229845868,-2483.99,0.00046027,21]
[309953456,1704229845878,-2483.99,0.00046027,21]
[309953457,1704229845887,-2483.99,0.00046027,21]
[309953458,1704229845897,-2483.99,0.00046027,21]
[309953459,1704229845907,-2484.01648633,0.00046027,21]
[309953460,1704229845916,-500.0,0.00046027,21]
[309953461,1704229845925,-521.48990852,0.00046027,21]
[309953462,1704229845935,-503.78413883,0.00046027,21]
[309953463,1704229845944,-500.0,0.00046027,21]
[309953464,1704229845953,-536.75334871,0.00046027,21]
[309953465,1704229845963,-533.7215135,0.00046027,21]
[309953466,1704229845972,-500.0,0.00046027,21]
[309953467,1704229845981,-506.20514767,0.00046027,21]
[309953468,1704229845990,-500.0,0.00046027,21]
[309953469,1704229845999,-500.0,0.00046027,21]
[309953470,1704229846009,-500.0,0.00046027,21]
[309953471,1704229846018,-500.0,0.00046027,21]
[309953472,1704229846027,-500.0,0.00046027,21]
[309953473,1704229846037,-500.0,0.00046027,21]
[309953474,1704229846046,-500.0,0.00046027,21]
[309953475,1704229846055,-639.68,0.00046027,21]
[309953476,1704229846065,-500.0,0.00046027,21]
[309953477,1704229846075,-500.0,0.00046027,21]
[309953478,1704229846084,-500.0,0.00046027,21]
[309953479,1704229846093,-500.0,0.00046027,21]
[309953480,1704229846105,-600.91128568,0.00046027,21]
[309953481,1704229846114,-500.0,0.00046027,21]
[309953482,1704229846123,-506.1378546,0.00046027,21]
[309953483,1704229846132,-500.0,0.00046027,21]
[309953484,1704229846141,-500.0,0.00046027,21]
[309953485,1704229846151,-500.0,0.00046027,21]
[309953486,1704229846161,-500.0,0.00046027,21]
[309953487,1704229846170,-500.0,0.00046027,21]
[309953488,1704229846179,-333.00368429,0.00046027,21]
[309953489,1704229846188,-150.0,0.00046027,21]
[309953490,1704229846197,-150.0,0.00046027,21]
[309953491,1704229846206,-500.0,0.00046027,21]
[309953492,1704229846215,-500.0,0.00046027,21]
[309953493,1704229846224,-593.43691783,0.00046027,21]
[309953494,1704229846234,-500.0,0.00046027,21]
[309953495,1704229846243,-500.0,0.00046027,21]
[309953496,1704229846252,-608.50439008,0.00046027,21]
[309953497,1704229846261,-500.0,0.00046027,21]
[309953498,1704229846270,-500.0,0.00046027,21]
[309953499,1704229846279,-500.0,0.00046027,21]
[309953500,1704229846288,-500.0,0.00046027,21]
[309953501,1704229846297,-500.0,0.00046027,21]
[309953502,1704229846306,-500.0,0.00046027,21]
[309953503,1704229846315,-500.0,0.00046027,21]
[309953504,1704229846325,-500.0,0.00046027,21]
[309953505,1704229846334,-500.0,0.00046027,21]
[309953506,1704229846343,-500.0,0.00046027,21]
[309953507,1704229846353,-500.0,0.00046027,21]
[309953508,1704229846363,-500.0,0.00046027,21]
[309953509,1704229846372,-500.0,0.00046027,21]
[309953510,1704229846381,-349.33155776,0.00046027,21]
[309953511,1704229846390,-500.0,0.00046027,21]
[309953512,1704229846399,-500.0,0.00046027,21]
[309953513,1704229846408,-500.0,0.00046027,21]
[309953514,1704229846418,-489.1376663,0.00046027,21]
[309953515,1704229846427,-500.0,0.00046027,21]
[309953516,1704229846436,-500.0,0.00046027,21]
[309953517,1704229846446,-500.0,0.00046027,21]
[309953518,1704229846455,-500.0,0.00046027,21]
[309953519,1704229846464,-500.0,0.00046027,21]
[309953520,1704229846473,-545.70342663,0.00046027,21]
[309953521,1704229846483,-500.0,0.00046027,21]
[309953522,1704229846492,-500.0,0.00046027,21]
[309953523,1704229846501,-500.0,0.00046027,21]
[309953524,1704229846511,-500.0,0.00046027,21]
[309953525,1704229846520,-500.0,0.00046027,21]
[309953526,1704229846529,-284.43898143,0.00046027,21]
[309953527,1704229846545,-190.54745612,0.00046027,21]
[309953528,1704229846556,-330.45290858,0.00046027,21]
[309953529,1704229846567,-169.54709142,0.00046027,21]
[309953530,1704229846576,-357.58245314,0.00046027,21]
[309953531,1704229846635,-142.41754686,0.00046027,21]
[309953532,1704229846645,-2033.05462937,0.00046027,3]
[309953533,1704229846680,-8710.28903786,0.00046017,3]
[309953534,1704229846691,-558.30096214,0.00046017,3]
[309953535,1704229846700,-420.04537063,0.00046027,3]
[309953536,1704229846710,-236.40442154,0.00046027,21]
[309953554,1704229849971,-1000.0,0.00046025,7]
[309953556,1704229849980,-155.10585622,0.00046026,4]
[309953558,1704229849990,-387.34337138,0.00046027,21]
[309953559,1704229849999,-2453.1,0.00046027,3]
[309953561,1704229850008,-880.96169748,0.00046027,3]
[309953564,1704229850020,-1260.69311586,0.00046027,3]
[309953725,1704230847137,-984.5444071,0.00035958,2]
[309953726,1704230847160,-515.4555929,0.00035959,7]
[309953727,1704230852097,-152.31087447,0.00035887,2]
[309953728,1704230852121,-154.84515485,0.00035957,5]
[309953729,1704230852144,-484.5444071,0.00035959,7]
[309953730,1704230852165,-685.0872895,0.00035959,4]
[309953731,1704230852184,-155.09664052,0.0004,4]
[309953732,1704230852204,-239.79051026,0.00041423,4]
[309953733,1704230852226,-154.12664665,0.00041423,4]
[309953819,1704231038737,-943.56999996,0.00041422,7]
[309953821,1704231038750,-56.43000004,0.00041422,7]
[309953823,1704231038759,-155.54819554,0.00041423,4]
[309953825,1704231038768,-154.84515485,0.00041423,8]
[309953827,1704231038777,-154.17701427,0.00041423,4]
[309953829,1704231038789,-527.12954456,0.00041423,4]
[309954286,1704231044267,-560.37793595,0.00041423,4]
[309954287,1704231044278,-173.856203,0.00041662,120]
[309954288,1704231044287,-277.0533785,0.00041746,2]
[309954290,1704231044296,-1492.9907713,0.00042636,2]
[309954292,1704231044305,-333.4088263,0.00042897,15]
[309954294,1704231044317,-1140.5681991,0.00042897,15]
[309954296,1704231044326,-237.08877874,0.00043927,2]
[309954298,1704231044335,-10000.0,0.00044,5]
[309954300,1704231044344,-10000.0,0.00045,5]
[309954302,1704231044354,-154.84515485,0.00045567,2]
[309954304,1704231044363,-14321.56132979,0.00045923,2]
[309954306,1704231044372,-280.60046756,0.00045979,2]
[309954307,1704231044381,-150.0,0.00045997,60]
[309954309,1704231044391,-150.0,0.00045997,60]
[309954311,1704231044400,-150.0,0.00046,39]
[309954313,1704231044409,-10000.0,0.00046,10]
[309954315,1704231044419,-1500.0,0.00046,3]
[309954317,1704231044427,-150.0,0.00046007,60]
[309954319,1704231044437,-150.0,0.00046007,60]
[309954321,1704231044446,-184.28,0.00046007,60]
[309954322,1704231044455,-4469.8,0.00046007,3]
[309954324,1704231044464,-150.0,0.00046017,60]
[309954326,1704231044474,-150.0,0.00046017,60]
[309954328,1704231044483,-150.0,0.00046017,60]
[309954329,1704231044496,-4025.42833546,0.00046025,4]
[309954331,1704231044506,-198.16685818,0.00046025,2]
[309954333,1704231044515,-180.44799942,0.00046025,2]
[309954335,1704231044524,-175.1993806,0.00046025,2]
[309954337,1704231044532,-239.87459175,0.00046025,4]
[309954339,1704231044542,-1209.0155047,0.00046025,4]
[309954341,1704231044551,-271.35243145,0.00046025,4]
[309954343,1704231044560,-260.478732,0.00046025,4]
[309954344,1704231044570,-154.90705577,0.00046025,4]
[309954346,1704231044579,-163.75219479,0.00046025,4]
[309954348,1704231044588,-285.38559642,0.00046025,2]
[309954349,1704231044597,-292.79647192,0.00046025,4]
[309954350,1704231044607,-2000.94431,0.00046025,4]
[309954351,1704231044616,-230.30158892,0.00046026,4]
[309954352,1704231044625,-250.0,0.00046026,10]
[309954353,1704231044636,-424.79346199,0.00046026,2]
[309954354,1704231044646,-151.0,0.00046026,7]
[309954355,1704231044655,-151.0,0.00046026,7]
[309954356,1704231044665,-4032.09972053,0.00046027,4]
[309954357,1704231044675,-500.0,0.00046027,21]
[309954358,1704231044684,-500.0,0.00046027,21]
[309954359,1704231044693,-226.29236931,0.00046027,21]
[309954360,1704231044702,-500.0,0.00046027,21]
[309954361,1704231044712,-625.0,0.00046027,21]
[309954363,1704231044721,-316.92120077,0.00046027,4]
[309954364,1704231044730,-5925.56332365,0.00046027,4]
[309954365,1704231044739,-237.31494233,0.00046027,4]
[309954489,1704231046691,-250.0,0.00038191,2]
[309954985,1704231056526,292.22430993,0.00022,4]
[309958554,1704231120448,808.64702723,0.00022,2]
[309958555,1704231122544,618.34955824,0.00022,2]
[309958556,1704231134534,768.44025186,0.00022,2]
[309958557,1704231138443,251.17312341,0.00022,2]
[309958560,1704231232532,292.22430993,0.00022,4]
[309958561,1704232042095,-166.8848065,0.00035025,2]
[309958562,1704232147097,-223.81129202,0.00034276,4]
[309958563,1704232147119,-154.84515485,0.00034277,4]
[309958564,1704232147140,-154.84515485,0.00034277,4]
[309958565,1704232147160,-5953.63656447,0.00034277,4]
[309958566,1704232147186,-329.92511927,0.00034277,4]
[309958567,1704232147206,-1170.12084859,0.00034278,4]
[309958568,1704232147226,-4300.0,0.00034279,2]
[309958569,1704232147246,-505.73717494,0.0003485,2]
[309958570,1704232147266,-1000.0,0.0003502,7]
[309958571,1704232147289,-154.84515485,0.00035021,5]
[309958572,1704232147309,-154.84515485,0.00035021,4]
[309958573,1704232147329,-154.84515485,0.00035025,4]
[309958574,1704232147349,-191.19741328,0.00035047,2]
[309958575,1704232147371,-166.666666,0.00035048,2]
[309958576,1704232147393,-168.93736696,0.00035248,7]
[309958577,1704232147413,-156.0,0.00035333,2]
[309958578,1704232147436,-17538.67738327,0.00035333,2]
[309958579,1704232152112,-7361.32261673,0.00035333,2]
[309958580,1704232152135,-423.083453,0.00035348,2]
[309958581,1704232152244,-203.514387,0.00035616,120]
[309958582,1704232152267,-199.041364,0.00035618,2]
[309958583,1704232152294,-166.666666,0.00036003,2]
[309958584,1704232152314,-495.31512757,0.00036098,5]
[309958585,1704232152337,-173.5726575,0.00036428,2]
[309958586,1704232152359,-199.041364,0.00036935,2]
[309958587,1704232152380,-63.02255989,0.00036959,2]
[309958588,1704232159122,-154.84515485,0.00034276,5]
[309958589,1704232159148,-14.34260714,0.00036959,2]
[309958590,1704232170113,-166.11596394,0.00035025,4]
[309958591,1704232170137,-89.30149897,0.00036959,2]
[309958592,1704232170160,-174.722041,0.00037361,2]
[309958593,1704232170181,-166.666666,0.00037915,2]
[309958594,1704232170202,-437.0,0.00037945,2]
[309958595,1704232170222,-312.0,0.0003799,2]
[309958596,1704232170243,-12968.8,0.0003799,3]
[309958597,1704232170264,-2816.63158754,0.00037998,4]
[309958598,1704232170284,-155.54106326,0.00037998,4]
[309958599,1704232170308,-160.49045629,0.00037998,4]
[309958600,1704232170329,-342.40571921,0.00037998,4]
[309958601,1704232170351,-223.81129202,0.00037999,4]
[309958602,1704232170371,-569.89418885,0.00037999,4]
[309958603,1704232170393,-194.19729155,0.00037999,4]
[309958604,1704232170423,-181.06627481,0.00037999,4]
[309958605,1704232170445,-1000.0,0.00037999,7]
[309958606,1704232170466,-1477.15564594,0.00038,120]
[309958607,1704232170486,-937.09432207,0.00038,10]
[309958669,1704232231770,-154.84515485,0.00034198,5]
[309958671,1704232231779,-10807.33,0.0003799,3]
[309958673,1704232231789,-9006.11,0.0003799,3]
[309958675,1704232231799,-7505.09,0.0003799,3]
[309958677,1704232231808,-1370.76850805,0.00037998,4]
[309958679,1704232231818,-1000.0,0.00037999,7]
[309958681,1704232231827,-156.66790441,0.00037999,4]
[309958682,1704232231837,-60101.60251458,0.00038,10]
[309958683,1704232231849,-30432.69428013,0.00038,10]
[309958735,1704232237960,-521.0003647,0.0003799,3]
[309958737,1704232237972,-527.12954456,0.0003799,3]
[309958743,1704232238019,-5206.11009074,0.0003799,3]
[309958745,1704232238029,-13566.84172443,0.00038,10]
[309959021,1704232240941,-1999.65052307,0.00038,10]
[309959213,1704232242827,-3167.63519696,0.00038,10]
[309959221,1704232242897,-69274.42868572,0.00038,10]
[309959223,1704232242906,-155.40166656,0.0003809,2]
[309959225,1704232242916,-2357.95562367,0.0003819,4]
[309959227,1704232242925,-3175.73673432,0.00038191,2]
[309959229,1704232242936,-1295.1494144,0.00038191,2]
[309959231,1704232242945,-764.75747071,0.00038191,2]
[309959233,1704232242954,-11872.57636498,0.00038546,2]
[309959235,1704232242963,-2077.70086387,0.00038546,2]
[309959237,1704232242973,-166.666666,0.0003887,2]
[309959239,1704232242982,-160.359219,0.00038977,2]
[309959241,1704232242992,-155.54819554,0.00039,4]
[309959243,1704232243001,-166.666666,0.00039826,2]
[309959245,1704232243010,-160.359219,0.00040419,2]
[309959248,1704232243030,-151.0,0.00040595,21]
[309959250,1704232243042,-155.40166656,0.00040669,2]
[309959253,1704232243052,-487.0,0.00041342,4]
[309959254,1704232243063,-164.16358392,0.00041421,4]
[309959256,1704232243073,-311.20386173,0.00041421,4]
[309959258,1704232243082,-899.23269608,0.00041421,4]
[309959260,1704232243092,-154.84515485,0.00041421,4]
[309959262,1704232243103,-984.02539987,0.00041421,2]
[309959264,1704232243114,-684.51863299,0.00041421,4]
[309959266,1704232243124,-1650.37483956,0.00041422,4]
[309959268,1704232243133,-1721.07220697,0.00041422,4]
[309959270,1704232243144,-973.92963115,0.00041423,2]
[309959272,1704232243154,-155.58267925,0.00041423,4]
[309959274,1704232243163,-255.98907028,0.00041423,4]
[309959276,1704232243173,-88693.29900778,0.00041423,60]
[309959278,1704232243187,-322.18816916,0.00041423,3]
[309959280,1704232243197,-155.61904144,0.00041423,4]
[309959282,1704232243207,-3009.76368581,0.00041423,4]
[309959284,1704232243216,-547.7266685,0.00041423,4]
[309959287,1704232243232,-731.57467731,0.00041423,4]
[309959290,1704232243248,-467.24673478,0.00041423,2]
[309959292,1704232243262,-479.72131892,0.00041423,4]
[309959295,1704232243276,-6211.40557439,0.00041423,4]
[309959296,1704232243290,-1818.17749445,0.00041423,2]
[309959297,1704232243302,-584.34464988,0.00041423,4]
[309959298,1704232243313,-1472.7289945,0.00041423,4]
[309959299,1704232243324,-203.514387,0.00041553,120]
[309959300,1704232243336,-300.0,0.00041739,30]
[309959301,1704232243348,-160.359219,0.00041861,2]
[309959302,1704232243360,-205.686229,0.00042247,30]
[309959303,1704232243373,-170.83536,0.00042247,30]
[309959305,1704232243385,-308.50462225,0.000427,30]
[309959307,1704232243399,-8000.0,0.000428,34]
[309959309,1704232243411,-151.0,0.0004319,21]
[309959312,1704232243422,-150.84915085,0.00043231,2]
[309959314,1704232243435,-155.40166656,0.00043248,2]
[309959316,1704232243450,-160.359219,0.00043303,2]
[309959318,1704232243459,-2479.19472551,0.00043724,2]
[309959321,1704232243471,-640.13839452,0.00043927,2]
[309959323,1704232243483,-301.6983017,0.00043958,4]
[309959325,1704232243494,-238.0,0.0004461,2]
[309959327,1704232243504,-200.751,0.0004461,2]
[309959330,1704232243516,-603.3966034,0.00044697,7]
[309959332,1704232243527,-200.0,0.000447,4]
[309959334,1704232243539,-160.359219,0.00044745,2]
[309959337,1704232243551,-537.0,0.00044904,6]
[309959339,1704232243562,-169.0,0.00045,90]
[309959341,1704232243575,-2674.06388022,0.00045105,4]
[309959343,1704232243585,-153.0,0.00045288,2]
[309959345,1704232243595,-166.82709291,0.00045448,4]
[309959347,1704232243605,-547.05487943,0.00045797,14]
[309959350,1704232243617,-300.0,0.000458,24]
[309959352,1704232243629,-155.40166656,0.00045827,2]
[309959354,1704232243641,-1206.79320679,0.00045828,30]
[309959357,1704232243652,-182.05434085,0.00045899,2]
[309959359,1704232243664,-13900.20681271,0.000459,10]
[309959361,1704232243677,-151.0,0.000459,7]
[309959364,1704232243691,-223.28730438,0.000459,7]
[309959366,1704232243700,-2000.0,0.000459,39]
[309959368,1704232243712,-2000.0,0.0004591,39]
[309959370,1704232243724,-200.0,0.00045912,60]
[309959373,1704232243735,-220.0,0.00045912,60]
[309959375,1704232243746,-2000.0,0.0004592,39]
[309959377,1704232243757,-500.0,0.00045922,2]
[309959379,1704232243769,-654.59,0.00045926,7]
[309959381,1704232243780,-654.59,0.00045926,7]
[309959384,1704232243792,-654.59,0.00045926,7]
[309959386,1704232243805,-168.4355183,0.00045927,3]
[309959388,1704232243816,-110085.99136318,0.00045927,2]
[309959391,1704232243829,-151.0,0.00045927,7]
[309959393,1704232243840,-21955.40204651,0.00045927,5]
[309959395,1704232243850,-513.875434,0.00045927,7]
[309959397,1704232243861,-513.875434,0.00045927,7]
[309959399,1704232243871,-190.11281963,0.00045927,10]
[309959401,1704232243881,-190.11281963,0.00045927,10]
[309959404,1704232243891,-190.11281963,0.00045927,10]
[309959406,1704232243904,-190.11281963,0.00045927,10]
[309959408,1704232243915,-190.11281963,0.00045927,10]
[309959410,1704232243926,-190.11281963,0.00045927,10]
[309959412,1704232243939,-190.11281963,0.00045927,10]
[309959414,1704232243949,-190.11281963,0.00045927,10]
[309959417,1704232243961,-190.11281963,0.00045927,10]
[309959419,1704232243973,-190.11281963,0.00045927,10]
[309959421,1704232243984,-190.11281963,0.00045927,10]
[309959423,1704232243995,-190.11281963,0.00045927,10]
[309959425,1704232244005,-190.11281963,0.00045927,10]
[309959427,1704232244015,-190.11281963,0.00045927,10]
[309959429,1704232244025,-190.11281963,0.00045927,10]
[309959431,1704232244035,-190.11281963,0.00045927,10]
[309959433,1704232244046,-190.11281963,0.00045927,10]
[309959436,1704232244062,-190.11281963,0.00045927,10]
[309959438,1704232244072,-190.11281963,0.00045927,10]
[309959440,1704232244083,-190.11,0.00045927,10]
[309959442,1704232244095,-760.45127851,0.00045927,10]
[309959444,1704232244107,-760.45127851,0.00045927,10]
[309959447,1704232244118,-760.45127851,0.00045927,10]
[309959449,1704232244130,-760.45127851,0.00045927,10]
[309959451,1704232244141,-760.45127851,0.00045927,10]
[309959453,1704232244152,-760.45127851,0.00045927,10]
[309959455,1704232244163,-760.45127851,0.00045927,10]
[309959457,1704232244174,-760.45127851,0.00045927,10]
[309959459,1704232244184,-760.45127851,0.00045927,10]
[309959462,1704232244195,-760.45127851,0.00045927,10]
[309959464,1704232244206,-760.45127851,0.00045927,10]
[309959466,1704232244217,-760.45127851,0.00045927,10]
[309959468,1704232244229,-760.45127851,0.00045927,10]
[309959470,1704232244239,-760.45127851,0.00045927,10]
[309959473,1704232244250,-760.45127851,0.00045927,10]
[309959475,1704232244260,-760.45127851,0.00045927,10]
[309959477,1704232244271,-760.45127851,0.00045927,10]
[309959479,1704232244282,-760.45127851,0.00045927,10]
[309959481,1704232244293,-760.45127851,0.00045927,10]
[309959494,1704232244399,-760.45,0.00045927,10]
[309959496,1704232244412,-180.03,0.00045927,10]
[309959498,1704232244421,-196.79541874,0.00045927,10]
[309959500,1704232244431,-196.79,0.00045927,10]
[309959502,1704232244441,-2000.0,0.0004593,39]
[309959504,1704232244450,-2000.0,0.0004594,39]
[309959506,1704232244459,-164.4,0.00045944,4]
[309959508,1704232244468,-160.82505708,0.00045944,4]
[309959510,1704232244477,-153.0,0.00045945,2]
[309959512,1704232244485,-153.0,0.00045945,2]
[309959514,1704232244495,-153.0,0.00045945,2]
[309959516,1704232244504,-153.0,0.00045945,2]
[309959518,1704232244513,-153.0,0.00045945,2]
[309959520,1704232244522,-153.0,0.00045945,2]
[309959522,1704232244531,-153.0,0.00045945,2]
[309959525,1704232244541,-153.0,0.00045945,2]
[309959526,1704232244550,-153.0,0.00045945,2]
[309959529,1704232244560,-153.0,0.00045945,2]
[309959530,1704232244569,-153.0,0.00045945,2]
[309959533,1704232244579,-285.793003,0.00045945,2]
[309959534,1704232244589,-153.0,0.00045945,2]
[309959536,1704232244599,-153.0,0.00045945,2]
[309959538,1704232244609,-153.0,0.00045945,2]
[309959541,1704232244620,-2000.0,0.0004595,39]
[309959543,1704232244630,-2000.0,0.0004596,39]
[309959544,1704232244639,-2000.0,0.0004597,39]
[309959547,1704232244650,-2000.0,0.0004598,39]
[309959549,1704232244659,-2000.0,0.0004599,39]
[309959550,1704232244668,-150.53,0.00045997,60]
[309959552,1704232244678,-550.0,0.00045999,7]
[309959554,1704232244688,-150.303345,0.00046,2]
[309959557,1704232244698,-3186.525,0.00046,39]
[309959559,1704232244707,-2869.768289,0.00046,39]
[309959561,1704232244718,-1500.0,0.00046,3]
[309959562,1704232244727,-150.0,0.00046007,60]
[309959564,1704232244736,-150.0,0.00046017,60]
[309959567,1704232244746,-212.428207,0.00046025,2]
[309959568,1704232244755,-212.428207,0.00046025,2]
[309959571,1704232244764,-151.0,0.00046025,7]
[309959573,1704232244773,-513.875434,0.00046025,7]
[309959574,1704232244783,-513.875434,0.00046025,7]
[309959577,1704232244792,-513.875434,0.00046025,7]
[309959579,1704232244802,-513.875434,0.00046025,7]
[309959581,1704232244811,-244.27020145,0.00046025,4]
[309959583,1704232244820,-1574.40407691,0.00046025,4]
[309959585,1704232244830,-1236.98313093,0.00046025,4]
[309959587,1704232244839,-251.76900306,0.00046025,4]
[309959589,1704232244848,-249.29915914,0.00046025,4]
[309959591,1704232244857,-265.72506834,0.00046025,4]
[309959593,1704232244866,-219.4922876,0.00046025,4]
[309959595,1704232244876,-297.68450899,0.00046025,4]
[309959597,1704232244885,-224.13188893,0.00046025,4]
[309959599,1704232244894,-10253.7337823,0.00046025,2]
[309959601,1704232244904,-156.43433505,0.00046025,4]
[309959603,1704232244913,-191.89602595,0.00046025,4]
[309959605,1704232244922,-558.51604343,0.00046025,4]
[309959607,1704232244931,-155.01604743,0.00046025,4]
[309959609,1704232244942,-343.18595768,0.00046025,4]
[309959611,1704232244951,-380.31899681,0.00046025,4]
[309959613,1704232244960,-209.47689928,0.00046025,4]
[309959615,1704232244969,-41038.65415216,0.00046025,30]
[309959699,1704232245785,-351.10475835,0.00046025,30]
[309959707,1704232245852,-1690.99873704,0.00046025,30]
[309960019,1704232298684,292.22430993,0.00022,4]
[309960022,1704232325852,4917.54762983,0.00024,2]
[309960028,1704232498477,1000.0,0.00024,2]
[309960029,1704232503939,321.84239309,0.00023999,2]
[309960031,1704232696308,1000.0,0.00023999,2]